[Event "*** Titled Tuesday Blitz"]
[Site "Chess.com"]
[Date "2020.05.19"]
[Round "2"]
[White "Ana_Berke"]
[Black "Rodchenkov_Vitalij"]
[Result "1/2-1/2"]
[WhiteElo "2107"]
[BlackElo "2390"]
[TimeControl "180+1"]
[EndTime "12:16:55 PDT"]
[Termination "Game drawn by repetition"]

1. e4 {[%clk 0:03:00.9]} 1... e6 {[%clk 0:02:59.5]} 2. d4 {[%clk 0:02:59.9]}
2... d5 {[%clk 0:02:59.9]} 3. Nd2 {[%clk 0:02:58.4]} 3... c5 {[%clk 0:02:59.1]}
4. Ngf3 {[%clk 0:02:57.5]} 4... cxd4 {[%clk 0:02:54.3]} 5. exd5 {[%clk
0:02:54.4]} 5... Qxd5 {[%clk 0:02:46.3]} 6. Bc4 {[%clk 0:02:53.6]} 6... Qd6
{[%clk 0:02:45.9]} 7. O-O {[%clk 0:02:53.3]} 7... Nf6 {[%clk 0:02:44.2]} 8. Re1
{[%clk 0:02:52.6]} 8... Nc6 {[%clk 0:02:44]} 9. Nb3 {[%clk 0:02:52.3]} 9... Bd7
{[%clk 0:02:25.3]} 10. Nbxd4 {[%clk 0:02:51]} 10... Nxd4 {[%clk 0:02:17.3]} 11.
Qxd4 {[%clk 0:02:50.3]} 11... Qxd4 {[%clk 0:02:15.8]} 12. Nxd4 {[%clk
0:02:50.2]} 12... Rc8 {[%clk 0:02:15.2]} 13. Bd3 {[%clk 0:02:49.5]} 13... Bc5
{[%clk 0:02:12.8]} 14. Nf3 {[%clk 0:02:46.3]} 14... O-O {[%clk 0:02:05.7]} 15.
Be3 {[%clk 0:02:41.4]} 15... Bxe3 {[%clk 0:02:01.1]} 16. Rxe3 {[%clk 0:02:41]}
16... Rfd8 {[%clk 0:01:59.7]} 17. h3 {[%clk 0:02:37.4]} 17... Nd5 {[%clk
0:01:53.2]} 18. Ree1 {[%clk 0:02:35.9]} 18... Nb4 {[%clk 0:01:51.2]} 19. Ne5
{[%clk 0:02:29.1]} 19... Nxd3 {[%clk 0:01:49.4]} 20. cxd3 {[%clk 0:02:27.5]}
20... Bb5 {[%clk 0:01:46.5]} 21. Rac1 {[%clk 0:02:27.1]} 21... f6 {[%clk
0:01:39.9]} 22. Nc4 {[%clk 0:02:25.5]} 22... Rxd3 {[%clk 0:01:36.6]} 23. b3
{[%clk 0:02:22.1]} 23... Bxc4 {[%clk 0:01:24.5]} 24. Rxc4 {[%clk 0:02:18.6]}
24... Rxc4 {[%clk 0:01:22.5]} 25. bxc4 {[%clk 0:02:18.6]} 25... Rc3 {[%clk
0:01:19.8]} 26. Rxe6 {[%clk 0:02:18.1]} 26... Rxc4 {[%clk 0:01:19.9]} 27. Re7
{[%clk 0:02:18.1]} 27... Ra4 {[%clk 0:01:17.7]} 28. Rxb7 {[%clk 0:02:17.5]}
28... Rxa2 {[%clk 0:01:18]} 29. h4 {[%clk 0:02:16.2]} 29... h5 {[%clk
0:01:16.3]} 30. g3 {[%clk 0:02:15.8]} 30... a5 {[%clk 0:01:14.3]} 31. Ra7 {[%clk
0:02:15.1]} 31... a4 {[%clk 0:01:13.5]} 32. Kg2 {[%clk 0:02:15.5]} 32... a3
{[%clk 0:01:11.6]} 33. Kf3 {[%clk 0:02:15.1]} 33... Kh7 {[%clk 0:01:08.3]} 34.
Kg2 {[%clk 0:02:13.7]} 34... Kg6 {[%clk 0:01:05.2]} 35. Ra5 {[%clk 0:02:14.2]}
35... Ra1 {[%clk 0:01:02.2]} 36. Kf3 {[%clk 0:02:13.9]} 36... a2 {[%clk
0:01:01.1]} 37. Kg2 {[%clk 0:02:13.1]} 37... Kf7 {[%clk 0:00:58.5]} 38. Ra6
{[%clk 0:02:12.9]} 38... Ke7 {[%clk 0:00:56.4]} 39. Kf3 {[%clk 0:02:12.8]} 39...
Kd7 {[%clk 0:00:56]} 40. Kf4 {[%clk 0:02:12.7]} 40... Kc7 {[%clk 0:00:53.2]} 41.
Kf5 {[%clk 0:02:12.7]} 41... Kb7 {[%clk 0:00:52.6]} 42. Ra3 {[%clk 0:02:12.6]}
42... Kb6 {[%clk 0:00:49.8]} 43. Kg6 {[%clk 0:02:12.5]} 43... Kb5 {[%clk
0:00:50.3]} 44. Kxg7 {[%clk 0:02:12.1]} 44... Kb4 {[%clk 0:00:50.6]} 45. Ra8
{[%clk 0:02:12.1]} 45... Kb3 {[%clk 0:00:49.1]} 46. Rb8+ {[%clk 0:02:11.5]}
46... Kc2 {[%clk 0:00:47.1]} 47. Ra8 {[%clk 0:02:10.6]} 47... f5 {[%clk
0:00:44.9]} 48. Kg6 {[%clk 0:02:09.1]} 48... f4 {[%clk 0:00:43.1]} 49. Kxh5
{[%clk 0:02:09.1]} 49... f3 {[%clk 0:00:40.6]} 50. g4 {[%clk 0:02:09.2]} 50...
Kb2 {[%clk 0:00:34.8]} 51. Rb8+ {[%clk 0:02:07.9]} 51... Kc1 {[%clk 0:00:33.3]}
52. Ra8 {[%clk 0:02:07.2]} 52... Kb2 {[%clk 0:00:32.6]} 53. Rb8+ {[%clk
0:02:06.7]} 53... Kc1 {[%clk 0:00:32.2]} 54. Ra8 {[%clk 0:02:05.2]} 54... Kb2
{[%clk 0:00:32.8]} 1/2-1/2

[Event "*** Titled Tuesday Blitz"]
[Site "Chess.com"]
[Date "2020.05.19"]
[Round "2"]
[White "zubridis"]
[Black "Mimsychess"]
[Result "1-0"]
[WhiteElo "2461"]
[BlackElo "2256"]
[TimeControl "180+1"]
[EndTime "12:16:56 PDT"]
[Termination "zubridis won by resignation"]

1. Nf3 {[%clk 0:03:00.9]} 1... d5 {[%clk 0:02:58.4]} 2. d4 {[%clk 0:02:59.7]}
2... Nf6 {[%clk 0:02:57.7]} 3. c4 {[%clk 0:03:00]} 3... e6 {[%clk 0:02:56.1]} 4.
g3 {[%clk 0:02:57.4]} 4... dxc4 {[%clk 0:02:47.8]} 5. Bg2 {[%clk 0:02:56.4]}
5... Nc6 {[%clk 0:02:48]} 6. O-O {[%clk 0:02:54.5]} 6... Rb8 {[%clk 0:02:42.4]}
7. Nc3 {[%clk 0:02:49.4]} 7... b5 {[%clk 0:02:26.8]} 8. Ne5 {[%clk 0:02:48.9]}
8... Nxe5 {[%clk 0:02:22.8]} 9. dxe5 {[%clk 0:02:48.7]} 9... Nd7 {[%clk
0:02:07.5]} 10. Qd4 {[%clk 0:01:58.6]} 10... Bc5 {[%clk 0:01:39.1]} 11. Qg4
{[%clk 0:01:56.1]} 11... O-O {[%clk 0:01:37]} 12. Bh6 {[%clk 0:01:51.6]} 12...
g6 {[%clk 0:01:37]} 13. Ne4 {[%clk 0:01:26.3]} 13... Nxe5 {[%clk 0:01:31.2]} 14.
Qf4 {[%clk 0:01:21.9]} 14... Nd7 {[%clk 0:01:07.7]} 15. Nxc5 {[%clk 0:01:18.8]}
15... Nxc5 {[%clk 0:00:56.2]} 16. Qe5 {[%clk 0:01:13.5]} 16... f6 {[%clk
0:00:53.8]} 17. Qxc5 {[%clk 0:01:11.8]} 17... Rf7 {[%clk 0:00:53.8]} 18. Rfd1
{[%clk 0:01:09.7]} 18... Rd7 {[%clk 0:00:50.6]} 19. Rxd7 {[%clk 0:01:02.9]}
19... Bxd7 {[%clk 0:00:51.5]} 20. Rd1 {[%clk 0:00:56.3]} 20... Qe8 {[%clk
0:00:51.2]} 21. Qxa7 {[%clk 0:00:52.7]} 21... Rc8 {[%clk 0:00:44]} 22. Qd4
{[%clk 0:00:46.4]} 22... Rd8 {[%clk 0:00:35.2]} 23. Qxf6 {[%clk 0:00:45.8]} 1-0

[Event "*** Titled Tuesday Blitz"]
[Site "Chess.com"]
[Date "2020.05.19"]
[Round "2"]
[White "BakaPG"]
[Black "Xeniya2005"]
[Result "1-0"]
[WhiteElo "2607"]
[BlackElo "2277"]
[TimeControl "180+1"]
[EndTime "12:16:59 PDT"]
[Termination "BakaPG won by checkmate"]

1. e4 {[%clk 0:03:00.9]} 1... e6 {[%clk 0:02:59.8]} 2. d4 {[%clk 0:02:59.5]}
2... d5 {[%clk 0:02:59.6]} 3. e5 {[%clk 0:02:59]} 3... c5 {[%clk 0:02:58]} 4. c3
{[%clk 0:02:59]} 4... Nc6 {[%clk 0:02:57.7]} 5. Nf3 {[%clk 0:02:59.6]} 5... Bd7
{[%clk 0:02:57]} 6. Be2 {[%clk 0:02:58.1]} 6... Rc8 {[%clk 0:02:48.9]} 7. O-O
{[%clk 0:02:56.7]} 7... Qb6 {[%clk 0:02:41.9]} 8. a3 {[%clk 0:02:47.2]} 8... c4
{[%clk 0:02:33.9]} 9. Nbd2 {[%clk 0:02:46.5]} 9... Qa6 {[%clk 0:02:20.5]} 10. b3
{[%clk 0:02:43.7]} 10... b5 {[%clk 0:02:19]} 11. a4 {[%clk 0:02:41.7]} 11... Rb8
{[%clk 0:02:05.3]} 12. Bb2 {[%clk 0:02:36]} 12... Na5 {[%clk 0:01:50.9]} 13.
axb5 {[%clk 0:02:29.7]} 13... Qxb5 {[%clk 0:01:50.2]} 14. bxc4 {[%clk
0:02:26.3]} 14... dxc4 {[%clk 0:01:44.1]} 15. Ba3 {[%clk 0:02:23.1]} 15... Bxa3
{[%clk 0:01:33.6]} 16. Rxa3 {[%clk 0:02:21.8]} 16... Qd5 {[%clk 0:00:52.9]} 17.
Rxa5 {[%clk 0:01:51.1]} 17... Qxa5 {[%clk 0:00:52.4]} 18. Nxc4 {[%clk
0:01:51.2]} 18... Qc7 {[%clk 0:00:51.4]} 19. Nd6+ {[%clk 0:01:50.5]} 19... Kf8
{[%clk 0:00:51.5]} 20. c4 {[%clk 0:01:47.9]} 20... Ne7 {[%clk 0:00:51]} 21. c5
{[%clk 0:01:44.4]} 21... Bc6 {[%clk 0:00:45.4]} 22. Ng5 {[%clk 0:01:43.1]} 22...
Be8 {[%clk 0:00:40.3]} 23. Bd3 {[%clk 0:01:41.6]} 23... h6 {[%clk 0:00:37.7]}
24. Qh5 {[%clk 0:01:28.1]} 24... Nd5 {[%clk 0:00:29.8]} 25. f4 {[%clk
0:01:21.6]} 25... Rb2 {[%clk 0:00:22.4]} 26. f5 {[%clk 0:01:18.2]} 26... Ne3
{[%clk 0:00:22.3]} 27. Nxe6+ {[%clk 0:01:13.6]} 27... fxe6 {[%clk 0:00:19.3]}
28. Qxe8# {[%clk 0:01:12.8]} 1-0

[Event "*** Titled Tuesday Blitz"]
[Site "Chess.com"]
[Date "2020.05.19"]
[Round "2"]
[White "peixe64"]
[Black "Rud_Makarian"]
[Result "0-1"]
[WhiteElo "2254"]
[BlackElo "2561"]
[TimeControl "180+1"]
[EndTime "12:17:02 PDT"]
[Termination "Rud_Makarian won by resignation"]

1. d4 {[%clk 0:03:00.9]} 1... Nf6 {[%clk 0:02:59.9]} 2. c4 {[%clk 0:02:58.9]}
2... g6 {[%clk 0:03:00.8]} 3. Nc3 {[%clk 0:02:58.9]} 3... Bg7 {[%clk 0:03:01.3]}
4. e4 {[%clk 0:02:59.2]} 4... d6 {[%clk 0:03:01.7]} 5. h3 {[%clk 0:02:59]} 5...
O-O {[%clk 0:03:00.9]} 6. Nf3 {[%clk 0:02:59.4]} 6... e5 {[%clk 0:02:59.6]} 7.
d5 {[%clk 0:02:59.3]} 7... Na6 {[%clk 0:02:56.8]} 8. Be2 {[%clk 0:02:59.2]} 8...
Nc5 {[%clk 0:02:47.3]} 9. Qc2 {[%clk 0:02:58.5]} 9... Nh5 {[%clk 0:02:45.6]} 10.
g3 {[%clk 0:02:54.4]} 10... f5 {[%clk 0:02:44.1]} 11. Nh4 {[%clk 0:02:31.2]}
11... Nf4 {[%clk 0:02:34.5]} 12. Be3 {[%clk 0:02:06.5]} 12... Nxe2 {[%clk
0:02:18.5]} 13. Qxe2 {[%clk 0:01:58.7]} 13... f4 {[%clk 0:02:01.5]} 14. Bxc5
{[%clk 0:01:54.8]} 14... fxg3 {[%clk 0:01:53.6]} 15. fxg3 {[%clk 0:01:50.2]}
15... dxc5 {[%clk 0:01:52.7]} 16. O-O-O {[%clk 0:01:42.6]} 16... Qg5+ {[%clk
0:01:51.2]} 17. Kb1 {[%clk 0:01:41.7]} 17... Qxg3 {[%clk 0:01:50.2]} 18. Qe1
{[%clk 0:00:57.4]} 18... Qxe1 {[%clk 0:01:48.3]} 19. Rdxe1 {[%clk 0:00:56.3]}
19... Bd7 {[%clk 0:01:48.5]} 20. Ng2 {[%clk 0:00:50.8]} 20... Rf2 {[%clk
0:01:46.2]} 21. Ne3 {[%clk 0:00:50.2]} 21... h5 {[%clk 0:01:44.4]} 22. Reg1
{[%clk 0:00:45.6]} 22... Kh7 {[%clk 0:01:43.3]} 23. Rf1 {[%clk 0:00:39.8]} 23...
Raf8 {[%clk 0:01:42.1]} 24. Rxf2 {[%clk 0:00:34.5]} 24... Rxf2 {[%clk 0:01:43]}
25. Nc2 {[%clk 0:00:26.3]} 25... g5 {[%clk 0:01:40.7]} 26. b4 {[%clk 0:00:25]}
26... cxb4 {[%clk 0:01:37.3]} 27. Nxb4 {[%clk 0:00:25.9]} 27... b6 {[%clk
0:01:36.7]} 28. Na6 {[%clk 0:00:24.9]} 28... Kg6 {[%clk 0:01:28.7]} 29. Nxc7
{[%clk 0:00:22.3]} 29... g4 {[%clk 0:01:29.1]} 30. hxg4 {[%clk 0:00:21.8]} 30...
hxg4 {[%clk 0:01:30]} 31. N3b5 {[%clk 0:00:17.8]} 31... g3 {[%clk 0:01:27.7]}
32. Rg1 {[%clk 0:00:16.7]} 32... g2 {[%clk 0:01:27.4]} 33. d6 {[%clk 0:00:16]}
33... Rf1+ {[%clk 0:01:27.2]} 0-1

[Event "*** Titled Tuesday Blitz"]
[Site "Chess.com"]
[Date "2020.05.19"]
[Round "2"]
[White "PavelChernomordik"]
[Black "Luibov_AN"]
[Result "1-0"]
[WhiteElo "2392"]
[BlackElo "2068"]
[TimeControl "180+1"]
[EndTime "12:17:08 PDT"]
[Termination "PavelChernomordik won on time"]

1. e4 {[%clk 0:02:55.6]} 1... g6 {[%clk 0:02:51.1]} 2. Nc3 {[%clk 0:02:53.8]}
2... Bg7 {[%clk 0:02:47.3]} 3. h4 {[%clk 0:02:54.1]} 3... h6 {[%clk 0:02:46.7]}
4. f4 {[%clk 0:02:52.7]} 4... c5 {[%clk 0:02:46.2]} 5. h5 {[%clk 0:02:52]} 5...
Nc6 {[%clk 0:02:25.9]} 6. hxg6 {[%clk 0:02:45.9]} 6... fxg6 {[%clk 0:02:25.8]}
7. Qg4 {[%clk 0:02:44.4]} 7... Kf7 {[%clk 0:02:13.4]} 8. Bc4+ {[%clk 0:02:42]}
8... e6 {[%clk 0:02:08.8]} 9. f5 {[%clk 0:02:37.2]} 9... gxf5 {[%clk 0:02:04.2]}
10. exf5 {[%clk 0:02:36.2]} 10... Ne5 {[%clk 0:01:58.9]} 11. fxe6+ {[%clk
0:02:34.7]} 11... dxe6 {[%clk 0:01:56.7]} 12. Qh5+ {[%clk 0:02:34.4]} 12... Kf8
{[%clk 0:01:54.6]} 13. Be2 {[%clk 0:02:27.5]} 13... a6 {[%clk 0:01:30.5]} 14.
Nf3 {[%clk 0:02:21.4]} 14... Nc6 {[%clk 0:01:23.6]} 15. Nh4 {[%clk 0:02:19.6]}
15... Nf6 {[%clk 0:01:17]} 16. Ng6+ {[%clk 0:02:16.2]} 16... Kg8 {[%clk
0:01:16.2]} 17. Qh4 {[%clk 0:02:12.4]} 17... Rh7 {[%clk 0:01:10.4]} 18. d3
{[%clk 0:02:06.8]} 18... Nd4 {[%clk 0:01:09.5]} 19. Bd1 {[%clk 0:01:56.1]} 19...
Qe8 {[%clk 0:01:06.2]} 20. Ne5 {[%clk 0:01:50.6]} 20... Nd7 {[%clk 0:00:44.7]}
21. Nf3 {[%clk 0:01:41.8]} 21... Ne5 {[%clk 0:00:26.7]} 22. Nxd4 {[%clk
0:01:31.8]} 22... cxd4 {[%clk 0:00:24.7]} 23. Ne4 {[%clk 0:01:32.1]} 23... Qg6
{[%clk 0:00:06.2]} 24. O-O {[%clk 0:01:27.5]} 24... Bf8 {[%clk 0:00:05.5]} 25.
Bh5 {[%clk 0:01:17]} 1-0

[Event "*** Titled Tuesday Blitz"]
[Site "Chess.com"]
[Date "2020.05.19"]
[Round "2"]
[White "Gareth-Bale11"]
[Black "karinachess1"]
[Result "0-1"]
[WhiteElo "2702"]
[BlackElo "2499"]
[TimeControl "180+1"]
[EndTime "12:17:13 PDT"]
[Termination "karinachess1 won by resignation"]

1. d4 {[%clk 0:03:00.9]} 1... Nf6 {[%clk 0:02:59]} 2. c4 {[%clk 0:03:00.3]} 2...
d6 {[%clk 0:02:57.5]} 3. Nc3 {[%clk 0:03:00.3]} 3... e5 {[%clk 0:02:57]} 4. Nf3
{[%clk 0:03:00.5]} 4... e4 {[%clk 0:02:56.5]} 5. Nd2 {[%clk 0:02:57.8]} 5... Qe7
{[%clk 0:02:50.1]} 6. e3 {[%clk 0:02:57.7]} 6... g6 {[%clk 0:02:48.1]} 7. h3
{[%clk 0:02:57.2]} 7... h5 {[%clk 0:02:47.9]} 8. Be2 {[%clk 0:02:50.5]} 8... Bg7
{[%clk 0:02:46.4]} 9. Rg1 {[%clk 0:02:49.4]} 9... h4 {[%clk 0:02:40.8]} 10. f3
{[%clk 0:02:35.1]} 10... exf3 {[%clk 0:02:16.8]} 11. Nxf3 {[%clk 0:02:36]} 11...
Bh6 {[%clk 0:02:03.6]} 12. Kf2 {[%clk 0:02:34.1]} 12... Bf5 {[%clk 0:01:54.6]}
13. Bd3 {[%clk 0:02:31.8]} 13... Be4 {[%clk 0:01:47]} 14. Qc2 {[%clk 0:02:23.4]}
14... Bxd3 {[%clk 0:01:43.2]} 15. Qxd3 {[%clk 0:02:24.3]} 15... Nc6 {[%clk
0:01:43.1]} 16. a3 {[%clk 0:02:18.4]} 16... O-O-O {[%clk 0:01:39.5]} 17. e4
{[%clk 0:02:00.9]} 17... Rde8 {[%clk 0:01:28.9]} 18. Bxh6 {[%clk 0:01:58.7]}
18... Rxh6 {[%clk 0:01:29.8]} 19. Rge1 {[%clk 0:01:58.9]} 19... g5 {[%clk
0:01:23]} 20. Nd5 {[%clk 0:01:55.6]} 20... Qd8 {[%clk 0:01:08.6]} 21. Nh2 {[%clk
0:01:52.4]} 21... g4 {[%clk 0:01:03.7]} 22. hxg4 {[%clk 0:01:39.2]} 22... Rg6
{[%clk 0:00:55.5]} 23. Nf4 {[%clk 0:01:00]} 23... Rgg8 {[%clk 0:00:52]} 24. g5
{[%clk 0:00:52.5]} 24... Rxg5 {[%clk 0:00:49.6]} 25. Nf3 {[%clk 0:00:48.4]}
25... Rg4 {[%clk 0:00:47.4]} 26. Qe3 {[%clk 0:00:47.5]} 26... Rxe4 {[%clk
0:00:46]} 27. Qxe4 {[%clk 0:00:46.7]} 27... Nxe4+ {[%clk 0:00:46.3]} 28. Rxe4
{[%clk 0:00:47.6]} 28... f5 {[%clk 0:00:42.4]} 29. Ne6 {[%clk 0:00:47.4]} 29...
Qg8 {[%clk 0:00:41.1]} 30. Ree1 {[%clk 0:00:41.9]} 30... Rxg2+ {[%clk
0:00:40.9]} 31. Kf1 {[%clk 0:00:42.8]} 31... Qg3 {[%clk 0:00:39.2]} 0-1

[Event "*** Titled Tuesday Blitz"]
[Site "Chess.com"]
[Date "2020.05.19"]
[Round "2"]
[White "Playgood28"]
[Black "DarkAlekhine"]
[Result "0-1"]
[WhiteElo "2280"]
[BlackElo "2610"]
[TimeControl "180+1"]
[EndTime "12:17:13 PDT"]
[Termination "DarkAlekhine won by resignation"]

1. d4 {[%clk 0:03:00.9]} 1... Nf6 {[%clk 0:02:58.2]} 2. c4 {[%clk 0:02:57.7]}
2... g6 {[%clk 0:02:56.3]} 3. Nc3 {[%clk 0:02:57.2]} 3... Bg7 {[%clk 0:02:48.9]}
4. Nf3 {[%clk 0:02:56.9]} 4... d6 {[%clk 0:02:49.8]} 5. h3 {[%clk 0:02:55.5]}
5... O-O {[%clk 0:02:47]} 6. Bf4 {[%clk 0:02:55.8]} 6... c5 {[%clk 0:02:37.4]}
7. e3 {[%clk 0:02:54.7]} 7... cxd4 {[%clk 0:02:35.5]} 8. exd4 {[%clk 0:02:53.8]}
8... Bf5 {[%clk 0:02:34.7]} 9. Be2 {[%clk 0:02:51.6]} 9... Ne4 {[%clk
0:02:35.1]} 10. O-O {[%clk 0:02:44.3]} 10... Nxc3 {[%clk 0:02:33.7]} 11. bxc3
{[%clk 0:02:43.3]} 11... Nc6 {[%clk 0:02:30.7]} 12. g4 {[%clk 0:02:30.1]} 12...
Bd7 {[%clk 0:02:29]} 13. Rb1 {[%clk 0:02:28.1]} 13... b6 {[%clk 0:02:22.6]} 14.
Nd2 {[%clk 0:02:15.4]} 14... Rc8 {[%clk 0:02:16.7]} 15. Be3 {[%clk 0:02:08.2]}
15... e5 {[%clk 0:02:04.1]} 16. Nb3 {[%clk 0:02:03.5]} 16... Qh4 {[%clk
0:02:00.2]} 17. c5 {[%clk 0:01:53.6]} 17... d5 {[%clk 0:01:47]} 18. cxb6 {[%clk
0:01:40.8]} 18... axb6 {[%clk 0:01:47.9]} 19. Qe1 {[%clk 0:01:36.1]} 19... Qxh3
{[%clk 0:01:45.9]} 20. f3 {[%clk 0:01:32.4]} 20... exd4 {[%clk 0:01:41.2]} 21.
Nxd4 {[%clk 0:01:31.3]} 21... Rfe8 {[%clk 0:01:40.9]} 22. Qf2 {[%clk 0:01:26.5]}
22... Ne5 {[%clk 0:01:09.2]} 23. Bf4 {[%clk 0:01:18.6]} 23... Rxc3 {[%clk
0:01:06]} 24. Rxb6 {[%clk 0:01:16]} 24... Bxg4 {[%clk 0:00:44.6]} 25. Rb3 {[%clk
0:01:11.1]} 25... Rxb3 {[%clk 0:00:42.1]} 26. axb3 {[%clk 0:01:08.9]} 26... Bd7
{[%clk 0:00:40.4]} 27. Bb5 {[%clk 0:01:02.5]} 27... Bxb5 {[%clk 0:00:38.3]} 28.
Nxb5 {[%clk 0:01:02.2]} 28... Nd3 {[%clk 0:00:38.7]} 29. Qg3 {[%clk 0:00:58.4]}
29... Nxf4 {[%clk 0:00:37.3]} 30. Qxf4 {[%clk 0:00:56.2]} 30... Re2 {[%clk
0:00:37.8]} 31. Qb8+ {[%clk 0:00:49.7]} 31... Bf8 {[%clk 0:00:37.7]} 32. Rf2
{[%clk 0:00:49.5]} 32... Re1+ {[%clk 0:00:37.7]} 0-1

[Event "*** Titled Tuesday Blitz"]
[Site "Chess.com"]
[Date "2020.05.19"]
[Round "2"]
[White "SerGo055"]
[Black "YQPerez"]
[Result "1/2-1/2"]
[WhiteElo "2568"]
[BlackElo "2942"]
[TimeControl "180+1"]
[EndTime "12:17:18 PDT"]
[Termination "Game drawn by repetition"]

1. d4 {[%clk 0:03:00.6]} 1... Nf6 {[%clk 0:02:59.1]} 2. Nf3 {[%clk 0:02:56.2]}
2... e6 {[%clk 0:02:58.9]} 3. c4 {[%clk 0:02:54]} 3... d5 {[%clk 0:02:59]} 4.
Nc3 {[%clk 0:02:53.7]} 4... Be7 {[%clk 0:02:58.9]} 5. Bg5 {[%clk 0:02:53.3]}
5... O-O {[%clk 0:02:58.2]} 6. e3 {[%clk 0:02:53.5]} 6... h6 {[%clk 0:02:58.5]}
7. Bh4 {[%clk 0:02:53.2]} 7... Ne4 {[%clk 0:02:58.4]} 8. Bxe7 {[%clk 0:02:52.3]}
8... Qxe7 {[%clk 0:02:59.3]} 9. Bd3 {[%clk 0:02:52.6]} 9... Nxc3 {[%clk
0:02:56]} 10. bxc3 {[%clk 0:02:53.5]} 10... dxc4 {[%clk 0:02:44]} 11. Bxc4
{[%clk 0:02:52.6]} 11... b6 {[%clk 0:02:44.6]} 12. O-O {[%clk 0:02:50.3]} 12...
Bb7 {[%clk 0:02:44.9]} 13. a4 {[%clk 0:02:49.8]} 13... Nc6 {[%clk 0:02:36.7]}
14. Bd3 {[%clk 0:02:39.8]} 14... Rad8 {[%clk 0:02:22.2]} 15. Qb1 {[%clk
0:02:35.9]} 15... Na5 {[%clk 0:02:07.1]} 16. Ne5 {[%clk 0:02:30.9]} 16... c5
{[%clk 0:02:04.2]} 17. Rc1 {[%clk 0:02:27.5]} 17... Bd5 {[%clk 0:01:50.5]} 18.
Rd1 {[%clk 0:01:53.2]} 18... cxd4 {[%clk 0:01:37.6]} 19. cxd4 {[%clk 0:01:50.7]}
19... Rc8 {[%clk 0:01:38.2]} 20. Bh7+ {[%clk 0:01:46.4]} 20... Kh8 {[%clk
0:01:38.1]} 21. Be4 {[%clk 0:01:46.8]} 21... Qb7 {[%clk 0:01:20.5]} 22. Bxd5
{[%clk 0:01:33.8]} 22... Qxd5 {[%clk 0:01:21.4]} 23. Qb5 {[%clk 0:01:33.4]}
23... Kg8 {[%clk 0:01:07.8]} 24. Rac1 {[%clk 0:01:17.7]} 24... Rfd8 {[%clk
0:00:55.5]} 25. h3 {[%clk 0:01:13.3]} 25... f6 {[%clk 0:00:50.3]} 26. Ng6 {[%clk
0:01:05.7]} 26... Qxb5 {[%clk 0:00:50]} 27. axb5 {[%clk 0:01:04.2]} 27... Kf7
{[%clk 0:00:50.7]} 28. Nf4 {[%clk 0:01:02.6]} 28... Nb3 {[%clk 0:00:48.6]} 29.
Rb1 {[%clk 0:01:01.2]} 29... Na5 {[%clk 0:00:39.6]} 30. Rbc1 {[%clk 0:00:55.8]}
30... Nb3 {[%clk 0:00:21.8]} 31. Rb1 {[%clk 0:00:55.1]} 31... Na5 {[%clk
0:00:22.1]} 32. Rbc1 {[%clk 0:00:55.3]} 1/2-1/2

[Event "*** Titled Tuesday Blitz"]
[Site "Chess.com"]
[Date "2020.05.19"]
[Round "2"]
[White "emperor87"]
[Black "ajdemipopushi"]
[Result "0-1"]
[WhiteElo "2596"]
[BlackElo "2298"]
[TimeControl "180+1"]
[EndTime "12:17:18 PDT"]
[Termination "ajdemipopushi won by resignation"]

1. e4 {[%clk 0:03:00.9]} 1... c5 {[%clk 0:03:00]} 2. Nf3 {[%clk 0:03:00.3]} 2...
g6 {[%clk 0:03:00.5]} 3. h4 {[%clk 0:02:58.9]} 3... h5 {[%clk 0:03:00.2]} 4. d4
{[%clk 0:02:57.2]} 4... cxd4 {[%clk 0:03:00.1]} 5. Qxd4 {[%clk 0:02:57.3]} 5...
Nf6 {[%clk 0:03:00]} 6. e5 {[%clk 0:02:56.7]} 6... Nc6 {[%clk 0:03:00.2]} 7. Qf4
{[%clk 0:02:55.2]} 7... Ng4 {[%clk 0:02:50.3]} 8. Bd2 {[%clk 0:02:47.4]} 8...
Bg7 {[%clk 0:02:38.8]} 9. Bc3 {[%clk 0:02:42.6]} 9... O-O {[%clk 0:02:35]} 10.
Nbd2 {[%clk 0:02:40]} 10... Qc7 {[%clk 0:02:26.8]} 11. Be2 {[%clk 0:02:33.5]}
11... Ngxe5 {[%clk 0:02:18.6]} 12. O-O-O {[%clk 0:02:31.7]} 12... d6 {[%clk
0:02:08.8]} 13. Ng5 {[%clk 0:02:16.8]} 13... b5 {[%clk 0:01:56.8]} 14. b3 {[%clk
0:02:13.1]} 14... b4 {[%clk 0:01:45.2]} 15. Bb2 {[%clk 0:02:13.1]} 15... a5
{[%clk 0:01:45.3]} 16. Kb1 {[%clk 0:02:12.7]} 16... a4 {[%clk 0:01:44.7]} 17.
Bc4 {[%clk 0:02:06]} 17... Nxc4 {[%clk 0:01:24.9]} 18. Nxc4 {[%clk 0:02:00.1]}
18... Ne5 {[%clk 0:01:21.6]} 19. Nxe5 {[%clk 0:01:55.6]} 19... dxe5 {[%clk
0:01:18.9]} 20. Qxb4 {[%clk 0:01:55.6]} 20... axb3 {[%clk 0:01:13.9]} 21. cxb3
{[%clk 0:01:51.5]} 21... Bf5+ {[%clk 0:01:12.2]} 22. Ka1 {[%clk 0:01:50.6]}
22... Rxa2+ {[%clk 0:00:44.7]} 23. Kxa2 {[%clk 0:01:48]} 23... Ra8+ {[%clk
0:00:44.2]} 24. Qa3 {[%clk 0:01:32.7]} 24... Rxa3+ {[%clk 0:00:41.9]} 25. Bxa3
{[%clk 0:01:32.9]} 25... Qc2+ {[%clk 0:00:37.1]} 26. Bb2 {[%clk 0:01:33]} 26...
e4 {[%clk 0:00:34]} 27. Rd8+ {[%clk 0:01:31.6]} 27... Bf8 {[%clk 0:00:30.4]} 28.
Rhd1 {[%clk 0:01:28.5]} 28... f6 {[%clk 0:00:27.5]} 29. Nh3 {[%clk 0:01:23.4]}
29... Bxh3 {[%clk 0:00:23.1]} 30. gxh3 {[%clk 0:01:22.5]} 30... Qxf2 {[%clk
0:00:20.3]} 31. Rc8 {[%clk 0:01:21.7]} 31... Kf7 {[%clk 0:00:19.9]} 32. Rdd8
{[%clk 0:01:21.2]} 32... Bh6 {[%clk 0:00:17.9]} 33. Rh8 {[%clk 0:01:21.1]} 33...
Bf4 {[%clk 0:00:17.2]} 34. Rh7+ {[%clk 0:01:19.1]} 34... Ke6 {[%clk 0:00:17]}
35. Rc6+ {[%clk 0:01:17.2]} 35... Bd6 {[%clk 0:00:16.7]} 0-1